bitfinex/quotes_BTCUSD_20250108
["timestamp","ask_amount","ask_price","bid_price","bid_amount"]
[1736311583608,0.32277261,96423.0,96414.0,0.09903441]
[1736311583609,0.15,96422.0,96414.0,0.09903441]
[1736311583818,0.15,96422.0,96417.0,0.0901706]
[1736311584031,0.15,96422.0,96421.0,0.0901706]
[1736311584237,0.21711886,96422.0,96421.0,0.09903441]
[1736311584468,0.15,96420.0,96416.0,0.09317041]
[1736311584676,0.032,96417.0,96414.0,0.13973113]
[1736311584917,0.15,96415.0,96414.0,0.23876554]
[1736311585334,0.15,96415.0,96414.0,0.13973113]
[1736311585335,0.173,96415.0,96414.0,0.13973113]
[1736311585746,0.15,96415.0,96414.0,0.18920501]
[1736311585966,0.009,96417.0,96415.0,0.0901706]
[1736311586142,0.009,96417.0,96416.0,0.09903441]
[1736311586997,0.023,96421.0,96416.0,0.09903441]
[1736311587203,0.06851896,96420.0,96416.0,0.09903441]
[1736311587411,0.15,96418.0,96416.0,0.09903441]
[1736311587618,0.15,96418.0,96416.0,0.19224627]
[1736311587819,0.041,96417.0,96416.0,0.19224627]
[1736311587993,0.018,96417.0,96416.0,0.19224627]
[1736311588226,0.15,96418.0,96416.0,0.28241687]
[1736311588428,0.009,96420.0,96416.0,0.28241687]
[1736311588635,0.009,96420.0,96417.0,0.0901706]
[1736311588636,0.009,96418.0,96417.0,0.0901706]
[1736311588838,0.009,96418.0,96417.0,0.18920501]
[1736311589626,0.009,96418.0,96417.0,0.09903441]
[1736311589856,0.15,96422.0,96417.0,0.09903441]
[1736311590061,0.15,96422.0,96418.0,0.09903441]
[1736311590196,0.15,96422.0,96418.0,0.18920501]
[1736311590395,0.15,96422.0,96418.0,0.09903441]
[1736311590629,0.009,96420.0,96418.0,0.09903441]
[1736311590829,0.009,96420.0,96419.0,0.13983389]
[1736311591012,0.15,96422.0,96419.0,0.2388683]
[1736311591212,0.15,96422.0,96420.0,0.09903441]
[1736311591459,0.159,96422.0,96420.0,0.09903441]
[1736311591637,0.168,96422.0,96420.0,0.09903441]
[1736311592079,0.357423,96421.0,96420.0,0.09903441]
[1736311592585,0.15,96421.0,96420.0,0.09903441]
[1736311592948,0.15,96421.0,96420.0,0.18920501]
[1736311593363,0.15,96421.0,96420.0,0.28243391]
[1736311594371,0.182,96421.0,96420.0,0.0932289]
[1736311594586,0.380425,96420.0,96419.0,0.13983389]
[1736311595070,0.380425,96420.0,96417.0,0.13983389]
[1736311595071,0.87508,96420.0,96417.0,0.13983389]
[1736311595272,0.173,96418.0,96417.0,0.13983389]
[1736311595471,0.15,96418.0,96417.0,0.3290389]
[1736311595896,0.173,96418.0,96417.0,0.13983389]
[1736311596271,0.173,96418.0,96414.0,0.27661579]
[1736311596272,0.380434,96417.0,96415.0,0.13983389]
[1736311596475,0.380434,96417.0,96415.0,0.2388683]
[1736311596703,0.173,96417.0,96416.0,0.09903441]
[1736311597478,0.009,96417.0,96416.0,0.09903441]
[1736311597604,0.22372652,96417.0,96416.0,0.09903441]
[1736311597804,0.21472652,96417.0,96416.0,0.09903441]
[1736311598012,0.159,96417.0,96416.0,0.18920501]
[1736311598215,0.009,96417.0,96416.0,0.26960501]
[1736311598633,0.018,96417.0,96416.0,0.26960501]
[1736311599439,0.009,96417.0,96416.0,0.26960501]
[1736311600162,0.018,96417.0,96416.0,0.26960501]
[1736311600392,0.021,96417.0,96416.0,0.26960501]
[1736311600632,0.012,96417.0,96416.0,0.36863942]
[1736311600797,0.012,96417.0,96416.0,0.46863942]
[1736311601003,0.013,96417.0,96416.0,0.55016734]
[1736311601205,0.30494321,96454.0,96452.0,0.0901706]
[1736311601403,0.30494321,96454.0,96453.0,0.18920501]
[1736311602390,0.30532815,96454.0,96453.0,0.18920501]
[1736311604014,0.30632815,96454.0,96453.0,0.42158563]
[1736311604633,0.00155554,96454.0,96453.0,0.42158563]
[1736311604830,0.00155554,96454.0,96453.0,0.18920501]
[1736311605029,0.00155554,96454.0,96453.0,0.19024159]
[1736311605792,0.00255554,96454.0,96453.0,0.19024159]
[1736311606208,0.00155554,96454.0,96453.0,0.19024159]
[1736311606439,0.00255554,96454.0,96453.0,0.19024159]
[1736311606897,0.00055554,96454.0,96453.0,0.19024159]
[1736311607338,0.01855554,96454.0,96453.0,0.19124159]
[1736311607536,0.01855554,96454.0,96453.0,0.39859559]
[1736311607742,0.00955554,96454.0,96453.0,0.49039162]
[1736311608151,0.01855554,96454.0,96453.0,0.39755901]
[1736311609905,0.01855554,96454.0,96453.0,0.19020501]
[1736311610907,0.01855554,96454.0,96453.0,0.25327402]
[1736311611331,0.01855554,96454.0,96453.0,0.19020501]
[1736311612632,0.01855554,96454.0,96453.0,0.10003441]
[1736311612838,0.04155554,96454.0,96453.0,0.10003441]
[1736311613040,0.04155554,96454.0,96453.0,0.001]
[1736311613216,0.34594254,96454.0,96453.0,0.001]
[1736311613421,0.38526423,96454.0,96453.0,0.001]
[1736311613618,0.15,96445.0,96437.0,0.0901706]
[1736311613847,0.15,96445.0,96444.0,0.0901706]
[1736311614023,0.15,96445.0,96444.0,0.18920501]
[1736311614646,0.00955554,96454.0,96444.0,0.09903441]
[1736311614647,0.15,96449.0,96444.0,0.09903441]
[1736311614852,0.009,96445.0,96444.0,0.0901706]
[1736311615224,0.009,96445.0,96434.0,0.0010368]
[1736311615225,0.009,96445.0,96441.0,0.0901706]
[1736311615422,0.009,96445.0,96433.0,0.207397]
[1736311615625,0.009,96445.0,96436.0,0.0901706]
[1736311615893,0.009,96445.0,96442.0,0.0901706]
[1736311615894,0.15,96443.0,96442.0,0.0901706]
[1736311616105,0.15,96443.0,96441.0,0.0901706]
[1736311616281,0.15,96443.0,96442.0,0.18920501]
[1736311616852,0.018,96445.0,96442.0,0.18920501]
[1736311616971,0.023,96446.0,96442.0,0.18920501]
[1736311617172,0.15,96445.0,96442.0,0.18920501]
[1736311617371,0.018,96443.0,96442.0,0.18920501]
[1736311617582,0.009,96443.0,96442.0,0.18920501]
[1736311619981,0.018,96443.0,96442.0,0.18920501]
[1736311620536,0.018,96443.0,96442.0,0.09903441]
[1736311620752,0.15,96441.0,96437.0,0.0901706]
[1736311620966,0.023,96440.0,96438.0,0.09903441]
[1736311623229,0.041,96440.0,96438.0,0.09903441]
[1736311626338,0.018,96440.0,96439.0,0.0901706]
[1736311626545,0.018,96440.0,96439.0,0.18920501]
[1736311627176,0.009,96440.0,96439.0,0.18920501]
[1736311627606,0.008,96440.0,96439.0,0.18920501]
[1736311627973,0.017,96440.0,96439.0,0.18920501]
[1736311628494,0.009,96440.0,96439.0,0.18920501]
[1736311628713,0.009,96440.0,96439.0,0.2706534]
[1736311628917,0.018,96440.0,96439.0,0.2706534]
[1736311629089,0.018,96440.0,96439.0,0.18920501]
[1736311629299,0.018,96440.0,96439.0,0.19024181]
[1736311629507,0.018,96440.0,96439.0,0.31884181]
[1736311629703,0.018,96440.0,96439.0,0.31780501]
[1736311630917,0.018,96440.0,96439.0,0.18920501]
[1736311631098,0.018,96440.0,96439.0,0.19024177]
[1736311632340,0.009,96440.0,96439.0,0.19024177]
[1736311632571,0.018,96440.0,96439.0,0.19024177]
[1736311632753,0.009,96440.0,96439.0,0.19024177]
[1736311632989,0.00055554,96454.0,96440.0,0.207382]
[1736311633165,0.00055554,96454.0,96441.0,0.10007114]
[1736311634100,0.00055554,96454.0,96448.0,0.09295558]
[1736311634276,0.00955554,96454.0,96449.0,0.09903441]
[1736311634502,0.01855554,96454.0,96449.0,0.09903441]
[1736311635679,0.00955554,96454.0,96449.0,0.09903441]
[1736311635878,0.01855554,96454.0,96449.0,0.09903441]
[1736311636324,0.00955554,96454.0,96449.0,0.09903441]
[1736311636471,0.01855554,96454.0,96449.0,0.09903441]
[1736311636677,0.00955554,96454.0,96449.0,0.09903441]
[1736311636879,0.01855554,96454.0,96449.0,0.09903441]
[1736311637276,0.01855554,96454.0,96453.0,0.23430501]
[1736311637458,0.00955554,96454.0,96453.0,0.18920501]
[1736311637851,0.00955554,96454.0,96453.0,0.32863838]
[1736311637852,0.01855554,96454.0,96453.0,0.32863838]
[1736311638398,0.00955554,96454.0,96453.0,0.09903441]
[1736311638614,0.03728713,96454.0,96453.0,0.09903441]
[1736311639039,0.04628713,96454.0,96453.0,0.09903441]
[1736311639242,0.00955554,96454.0,96453.0,0.09903441]
[1736311639512,0.01855554,96454.0,96453.0,0.09903441]
[1736311640918,0.02918365,96454.0,96453.0,0.09903441]
[1736311642003,0.15,96452.0,96451.0,0.09299967]
[1736311642204,1.09067048,96452.0,96451.0,0.09299967]
[1736311642418,1.09186964,96452.0,96451.0,0.09299967]
[1736311642838,1.09186964,96452.0,96433.0,0.0901706]
[1736311642839,0.35738,96441.0,96440.0,0.09299967]
[1736311643039,0.35738,96441.0,96440.0,0.19203408]
[1736311643845,0.35738,96441.0,96440.0,0.09903441]
[1736311644044,0.36638,96441.0,96440.0,0.09903441]
[1736311644441,0.36638,96441.0,96437.0,0.09299967]
[1736311644442,0.15,96438.0,96437.0,0.09299967]
[1736311644643,0.33001748,96438.0,96437.0,0.09299967]
[1736311644848,0.450669,96438.0,96437.0,0.09299967]
[1736311645274,0.023,96437.0,96430.0,0.09299967]
[1736311645484,0.380402,96431.0,96430.0,0.09299967]
[1736311646248,0.023,96430.0,96428.0,0.0901706]
[1736311646453,0.023,96430.0,96423.0,0.09299967]
[1736311646454,0.15,96428.0,96423.0,0.09299967]
[1736311646693,0.15,96426.0,96423.0,0.09299967]
[1736311646891,0.15,96426.0,96425.0,0.0901706]
[1736311647777,0.018,96431.0,96430.0,0.0901706]
[1736311647951,0.018,96431.0,96430.0,0.18920501]
[1736311648255,0.009,96431.0,96430.0,0.18920501]
[1736311648454,0.009,96431.0,96430.0,0.09903441]
[1736311649015,0.357391,96436.0,96435.0,0.0901706]
[1736311649221,0.357391,96436.0,96435.0,0.18920501]
[1736311649405,0.357391,96436.0,96435.0,0.09903441]
[1736311649602,0.15,96429.0,96428.0,0.09311352]
[1736311649837,0.15,96429.0,96428.0,0.28231853]
[1736311650031,0.15,96429.0,96428.0,0.18920501]
[1736311650843,0.009,96429.0,96428.0,0.09903441]
[1736311651080,0.159,96429.0,96428.0,0.18920501]
[1736311651231,0.159,96429.0,96428.0,0.09903441]
[1736311652054,0.009,96429.0,96428.0,0.09903441]
[1736311652296,0.15,96427.0,96423.0,0.18328412]
[1736311652513,0.173,96428.0,96424.0,0.09903441]
[1736311653325,0.173,96428.0,96424.0,0.18920501]
[1736311653506,0.018,96427.0,96424.0,0.18920501]
[1736311653730,0.023,96426.0,96424.0,0.18920501]
[1736311656338,0.032,96426.0,96424.0,0.18920501]
[1736311656541,0.207415,96425.0,96424.0,0.18920501]
[1736311656851,0.207415,96425.0,96424.0,0.09903441]
[1736311657098,0.207415,96425.0,96424.0,0.18920501]
[1736311658966,0.216415,96425.0,96424.0,0.18920501]
[1736311659384,0.216415,96425.0,96424.0,0.09903441]
[1736311659588,0.216415,96425.0,96422.0,0.09311352]
[1736311659589,0.380419,96423.0,96422.0,0.09311352]
[1736311659807,1.456991,96423.0,96422.0,0.09311352]
[1736311660014,1.66588811,96423.0,96422.0,0.09311352]
[1736311660224,1.12730752,96423.0,96422.0,0.09311352]
[1736311660863,1.12730752,96423.0,96408.0,0.09311352]
[1736311660864,0.023,96415.0,96408.0,0.09311352]
[1736311661072,0.44457748,96415.0,96408.0,0.09311352]
[1736311661307,0.400656,96415.0,96408.0,0.09311352]
[1736311661704,0.61043972,96415.0,96406.0,0.0901706]
[1736311661880,0.61043972,96415.0,96403.0,8.53e-05]
[1736311662055,0.70947413,96415.0,96403.0,8.53e-05]
[1736311662464,0.71847413,96415.0,96403.0,8.53e-05]
[1736311662666,0.72872842,96415.0,96406.0,0.0901706]
[1736311662873,0.63869401,96415.0,96406.0,0.0901706]
[1736311663779,0.56957901,96415.0,96406.0,0.0901706]
[1736311663978,0.54741401,96415.0,96406.0,0.0901706]
[1736311664195,0.41103801,96415.0,96406.0,0.1713706]
[1736311665535,0.40869029,96415.0,96406.0,0.1713706]
[1736311665950,0.39969029,96415.0,96406.0,0.1713706]
[1736311666156,0.39969029,96415.0,96414.0,0.18929031]
[1736311666157,0.01925429,96415.0,96414.0,0.18929031]
[1736311666377,0.009,96415.0,96414.0,0.09911971]
[1736311666584,0.018,96415.0,96414.0,0.09911971]
[1736311667012,0.041,96415.0,96414.0,8.53e-05]
[1736311667389,0.032,96415.0,96414.0,8.53e-05]
[1736311667633,0.023,96415.0,96414.0,8.53e-05]
[1736311667986,0.032,96415.0,96414.0,8.53e-05]
[1736311668400,0.023,96415.0,96414.0,8.53e-05]
[1736311668598,0.041,96415.0,96414.0,8.53e-05]
[1736311669007,0.09038469,96415.0,96414.0,8.53e-05]
[1736311669213,0.08138469,96415.0,96414.0,8.53e-05]
[1736311669429,0.08253317,96415.0,96414.0,8.53e-05]
[1736311669642,0.46636,96415.0,96414.0,8.53e-05]
[1736311670115,0.79386,96415.0,96414.0,8.53e-05]
[1736311670362,0.79386,96415.0,96384.0,0.27934338]
[1736311670363,0.3505,96414.0,96384.0,0.27934338]
[1736311670561,0.3505,96414.0,95211.0,0.00619318]
[1736311670756,0.1,96366.0,96333.0,18.94124568]
[1736311670939,0.1,96334.0,96333.0,17.55096548]
[1736311671137,5.22280837,96334.0,96333.0,12.81954772]
[1736311671451,5.22280837,96334.0,96333.0,8.80700151]
[1736311671452,6.00994088,96334.0,96333.0,8.80700151]
[1736311671649,7.35023282,96334.0,96333.0,6.97648903]
[1736311671851,7.35023282,96334.0,96333.0,2.5159291]
[1736311672055,7.35023282,96334.0,96333.0,2.51256428]
[1736311672056,6.53915975,96334.0,96333.0,2.51256428]
[1736311672289,6.63915975,96334.0,96333.0,2.51256428]
[1736311672518,6.63915975,96334.0,96333.0,2.48856428]
[1736311672519,6.59465975,96334.0,96333.0,2.48856428]
[1736311672688,15.66558954,96334.0,96333.0,2.24114683]
[1736311672897,11.93297077,96334.0,96333.0,2.17886383]
[1736311673096,11.66005524,96334.0,96333.0,2.17243477]
[1736311673373,11.52646377,96334.0,96333.0,1.87028484]
[1736311673577,11.66218773,96334.0,96333.0,0.50899469]
[1736311673782,11.66218773,96334.0,96320.0,0.28924543]
[1736311673783,1.007639,96321.0,96320.0,0.28924543]
[1736311673992,1.3718092,96321.0,96320.0,0.28924543]
[1736311674194,1.5218092,96321.0,96320.0,0.29385106]
[1736311674399,8.69907343,96321.0,96320.0,0.28924543]
[1736311674603,9.0615377,96321.0,96320.0,0.00311268]
[1736311674809,0.907682,96301.0,96300.0,4e-08]
[1736311675032,1.5218569,96301.0,96300.0,4e-08]
[1736311675232,1.5449628,96301.0,96300.0,4e-08]
[1736311675365,1.60211465,96301.0,96300.0,4e-08]
[1736311675561,4.09679327,96301.0,96300.0,4e-08]
[1736311675937,0.45,96295.0,96294.0,3.4e-07]
[1736311676052,0.54903441,96295.0,96294.0,3.4e-07]
[1736311676269,0.66727983,96295.0,96294.0,3.4e-07]
[1736311676473,0.357774,96258.0,96252.0,0.0953]
[1736311676677,0.357774,96258.0,96257.0,0.14903441]
[1736311676889,0.357774,96258.0,96257.0,0.14864004]
[1736311677311,0.357774,96258.0,96257.0,0.14911754]
[1736311677312,0.25,96258.0,96257.0,0.14911754]
[1736311677514,2.09152516,96258.0,96257.0,0.09903441]
[1736311677870,0.42368505,96258.0,96257.0,0.11856785]
[1736311678054,0.42368505,96258.0,96257.0,0.17573441]
[1736311678204,0.42368505,96258.0,96257.0,0.17569441]
[1736311678411,0.43268505,96258.0,96257.0,0.17573441]
[1736311678620,0.54168505,96258.0,96257.0,0.0767]
[1736311678822,0.08009259,96254.0,96225.0,0.01990741]
[1736311679024,0.56564259,96258.0,96243.0,0.09903441]
[1736311679198,0.64573518,96258.0,96257.0,1.49996]
[1736311679423,0.207778,96257.0,96243.0,0.09903441]
[1736311679625,0.34886659,96258.0,96246.0,0.09903441]
[1736311679845,0.33986659,96258.0,96247.0,0.09903441]
[1736311680085,0.22710577,96251.0,96247.0,0.09903441]
[1736311680470,0.22710577,96251.0,96250.0,1.5]
[1736311680776,0.007,96254.0,96250.0,1.59903441]
[1736311681075,0.007,96254.0,96251.0,0.09903441]
[1736311681252,0.00950822,96258.0,96251.0,0.09903441]
[1736311681435,0.00050822,96258.0,96252.0,0.00103881]
[1736311681634,0.00950822,96258.0,96253.0,0.09903441]
[1736311681838,0.01850822,96258.0,96255.0,0.122]
[1736311682041,0.00050822,96258.0,96256.0,0.09903441]
[1736311682260,0.00050822,96258.0,96256.0,0.10007315]
[1736311682605,0.01850822,96258.0,96256.0,0.09903441]
[1736311682809,0.00050822,96258.0,96256.0,0.09903441]
[1736311682997,0.00950822,96258.0,96256.0,0.09903441]
[1736311683206,0.01850822,96258.0,96256.0,0.09903441]
[1736311683406,0.00950822,96258.0,96256.0,0.09903441]
[1736311684855,0.01850822,96258.0,96256.0,0.09903441]
[1736311685096,0.01850822,96258.0,96257.0,0.32995364]
[1736311685097,0.009,96258.0,96257.0,0.32995364]
[1736311685293,0.11236002,96279.0,96257.0,0.32891485]
[1736311685644,0.11236002,96279.0,96272.0,0.207744]
[1736311685844,0.25,96298.0,96276.0,0.09903441]
[1736311685845,0.1,96298.0,96276.0,0.09903441]
[1736311686048,0.1,96298.0,96280.0,0.207726]
[1736311686174,0.25,96298.0,96281.0,0.10007288]
[1736311686385,0.15,96298.0,96281.0,0.10007288]
[1736311686580,0.08009259,96298.0,96281.0,0.10007288]
[1736311686811,0.1,96277.0,96257.0,0.0001526]
[1736311686966,0.28784259,96270.0,96258.0,0.09903441]
[1736311687349,0.207738,96275.0,96258.0,0.09903441]
[1736311687475,0.1,96289.0,96260.0,0.09903441]
[1736311687690,0.18009259,96282.0,96261.0,0.00103865]
[1736311687917,0.1,96282.0,96276.0,0.001]
[1736311688121,0.00114848,96284.0,96277.0,0.09903441]
[1736311688319,0.207707,96290.0,96277.0,0.09903441]
[1736311688495,0.28779959,96290.0,96277.0,0.09903441]
[1736311688701,0.009,96289.0,96278.0,0.00103856]
[1736311688961,0.009,96282.0,96279.0,0.10007293]
[1736311689117,0.009,96282.0,96279.0,0.09903441]
[1736311689322,0.216719,96284.0,96279.0,0.09903441]
[1736311689481,0.00114848,96283.0,96279.0,0.09903441]
[1736311690184,0.216719,96284.0,96279.0,0.09903441]
[1736311690385,0.22664189,96282.0,96279.0,0.09903441]
[1736311690703,0.01891889,96282.0,96279.0,0.09903441]
[1736311691168,0.01891889,96281.0,96279.0,0.09903441]
[1736311691863,0.018,96282.0,96279.0,0.09903441]
[1736311692064,0.207725,96281.0,96279.0,0.09903441]
[1736311692687,0.225725,96281.0,96279.0,0.09903441]
[1736311692879,0.018,96281.0,96279.0,0.09903441]
[1736311693053,0.018,96281.0,96280.0,0.20876555]
[1736311693400,0.009,96281.0,96280.0,0.30676141]
[1736311693677,0.009,96281.0,96280.0,0.09903441]
[1736311694088,0.28778659,96296.0,96281.0,0.207725]
[1736311694285,0.08009259,96306.0,96282.0,0.10007289]
[1736311694489,0.207665,96309.0,96286.0,0.09903441]
[1736311694661,0.207665,96309.0,96283.0,0.01000729]
[1736311694662,0.207661,96311.0,96291.0,0.30673641]
[1736311694860,0.01900495,96305.0,96293.0,0.207699]
[1736311695079,0.01900495,96305.0,96283.0,0.01000729]
[1736311695080,0.01900495,96305.0,96304.0,0.207675]
[1736311695233,0.01900495,96305.0,96304.0,0.09903441]
[1736311695654,0.01900495,96305.0,96304.0,0.09918701]
[1736311696293,0.009,96305.0,96304.0,0.09918701]
[1736311696729,0.009,96305.0,96304.0,0.10022523]
[1736311697119,0.009,96305.0,96304.0,0.18527355]
[1736311697322,0.009,96305.0,96304.0,0.10022523]
[1736311697503,0.03040792,96317.0,96304.0,0.10022523]
[1736311697739,0.03040792,96317.0,96305.0,0.51541762]
[1736311697946,0.01909026,96316.0,96305.0,0.51541762]
[1736311698691,0.04949818,96315.0,96305.0,0.51541762]
[1736311698912,0.04949818,96315.0,96311.0,0.20766]
[1736311699121,0.04949818,96315.0,96312.0,0.09903441]
[1736311699346,0.04949818,96314.0,96312.0,0.09903441]
[1736311699747,0.018,96316.0,96312.0,0.09903441]
[1736311699748,0.018,96316.0,96313.0,0.207656]
[1736311699894,0.018,96316.0,96314.0,0.09903441]
[1736311700505,0.04999743,96315.0,96314.0,0.09903441]
[1736311700905,0.06799743,96315.0,96314.0,0.09903441]
[1736311701306,0.05899743,96315.0,96314.0,0.09903441]
[1736311701780,0.06799743,96315.0,96314.0,0.09903441]
[1736311703453,0.07568497,96315.0,96314.0,0.09903441]
[1736311703916,0.07568497,96315.0,96314.0,0.30668841]
[1736311704659,0.06799743,96315.0,96314.0,0.30668841]
[1736311707523,0.03722978,96315.0,96314.0,0.30668841]
[1736311709616,0.03722978,96315.0,96314.0,0.32659582]
[1736311709831,0.08009259,96348.0,96318.0,0.01990741]
[1736311710037,0.01230504,96342.0,96328.0,0.09903441]
[1736311710245,0.01230504,96342.0,96334.0,0.207608]
[1736311710513,0.01230504,96342.0,96335.0,0.09903441]
[1736311710736,0.030764,96341.0,96335.0,0.09903441]
[1736311711139,0.030764,96341.0,96336.0,0.207606]
[1736311711355,0.030764,96340.0,96337.0,0.09903441]
[1736311711561,0.030764,96340.0,96338.0,0.207602]
[1736311711805,0.030764,96340.0,96339.0,0.09903441]
[1736311712009,0.009,96342.0,96339.0,0.18227233]
[1736311712210,0.009,96342.0,96341.0,0.09903441]
[1736311712413,0.207523,96375.0,96341.0,0.09903441]
[1736311712414,0.030764,96383.0,96347.0,0.207581]
[1736311712667,0.030764,96383.0,96358.0,0.023]
[1736311712846,0.08026339,96402.0,96390.0,0.207489]
[1736311713049,0.08026339,96402.0,96383.0,0.207505]
[1736311713050,0.1,96413.0,96392.0,0.207486]
[1736311713395,0.00769193,96401.0,96399.0,0.09903441]
[1736311713594,0.01230708,96406.0,96400.0,0.30753962]
[1736311713797,0.08009259,96421.0,96401.0,0.09903441]
[1736311713976,0.08009259,96421.0,96402.0,0.00103713]
[1736311714174,0.00768415,96420.0,96411.0,0.09903441]
[1736311714395,0.00768415,96420.0,96419.0,0.09903441]
[1736311714554,0.00768415,96420.0,96419.0,0.30646141]
[1736311714750,0.00050948,96421.0,96420.0,0.0822]
[1736311714957,0.00050948,96421.0,96420.0,0.18123441]
[1736311714958,0.00950948,96421.0,96420.0,0.18123441]
[1736311716233,0.00950948,96421.0,96420.0,0.09903441]
[1736311716460,0.00941763,96421.0,96420.0,0.09903441]
[1736311716848,0.00041763,96421.0,96420.0,0.09903441]
[1736311717014,0.00941763,96421.0,96420.0,0.10003441]
[1736311717215,0.00941763,96421.0,96420.0,0.09903441]
[1736311717216,0.00041763,96421.0,96420.0,0.09903441]
[1736311717624,0.00941763,96421.0,96420.0,0.10003441]
[1736311717827,0.00041763,96421.0,96420.0,0.09903441]
[1736311718042,0.00941763,96421.0,96420.0,0.10003441]
[1736311718345,0.01841763,96421.0,96420.0,0.10103441]
[1736311718527,0.21684063,96421.0,96420.0,0.09903441]
[1736311718729,0.21684063,96421.0,96420.0,0.10003441]
[1736311718932,0.02041763,96421.0,96420.0,0.10103441]
[1736311720067,0.00041763,96421.0,96420.0,0.09903441]
[1736311720407,0.01841763,96421.0,96420.0,0.10003441]
[1736311720838,0.00041763,96421.0,96420.0,0.09903441]
[1736311721241,0.00041763,96421.0,96420.0,0.10003441]
[1736311721242,0.01841763,96421.0,96420.0,0.10003441]
[1736311721647,0.00941763,96421.0,96420.0,0.09903441]
[1736311721873,0.01841763,96421.0,96420.0,0.09903441]
[1736311722060,0.00941763,96421.0,96420.0,0.09903441]
[1736311723285,0.00041763,96421.0,96420.0,0.09903441]
[1736311723534,0.01841763,96421.0,96420.0,0.10003441]
[1736311723937,0.023,96420.0,96383.0,0.0808]
[1736311724288,0.35480658,96421.0,96383.0,0.0808]
[1736311724289,0.207473,96398.0,96395.0,0.18371253]
[1736311724465,0.514948,96398.0,96396.0,0.09903441]
[1736311724670,0.357477,96396.0,96395.0,0.28274694]
[1736311724835,0.53756959,96396.0,96395.0,0.18371253]
[1736311725012,0.56056959,96396.0,96395.0,0.18371253]
[1736311725225,0.207503,96384.0,96378.0,0.0487]
[1736311725431,0.15,96388.0,96384.0,0.001]
[1736311725643,0.28758659,96389.0,96385.0,0.09903441]
[1736311725644,0.08009259,96389.0,96385.0,0.09903441]
[1736311725862,0.01911262,96396.0,96388.0,0.09903441]
[1736311726050,0.009,96398.0,96394.0,0.30651441]
[1736311726264,0.009,96398.0,96394.0,0.09903441]
[1736311726430,0.00950911,96398.0,96394.0,0.09903441]
[1736311727431,0.00050911,96398.0,96394.0,0.09903441]
[1736311727676,0.009,96396.0,96395.0,0.001]
[1736311727875,0.018,96396.0,96395.0,0.10003441]
[1736311728074,0.00050911,96398.0,96395.0,0.09903441]
[1736311728295,0.00950911,96398.0,96396.0,0.30651141]
[1736311728499,0.01850911,96398.0,96397.0,0.09903441]
[1736311728845,0.00950911,96398.0,96397.0,0.18193441]
[1736311729015,0.00050911,96398.0,96397.0,0.18193441]
[1736311730154,0.00950911,96398.0,96397.0,0.18193441]
[1736311731186,0.00950911,96398.0,96397.0,0.18293441]
[1736311731604,0.00050911,96398.0,96397.0,0.18193441]
[1736311731813,0.00950911,96398.0,96397.0,0.18193441]
[1736311732015,0.00950911,96398.0,96397.0,0.09903441]
[1736311732016,0.00350911,96398.0,96397.0,0.09903441]
[1736311732467,0.01250911,96398.0,96397.0,0.09903441]
[1736311733101,0.0286642,96398.0,96397.0,0.09903441]
[1736311733504,0.0376642,96398.0,96397.0,0.10003441]
[1736311733711,0.00950911,96398.0,96397.0,0.10003441]
[1736311733917,0.00050911,96398.0,96397.0,0.15053395]
[1736311734117,0.00950911,96398.0,96397.0,0.15053395]
[1736311734397,0.00950911,96398.0,96397.0,0.15153395]
[1736311734617,0.01850911,96398.0,96397.0,0.15153395]
[1736311734866,0.00950911,96398.0,96397.0,0.09903441]
[1736311735059,0.00050911,96398.0,96397.0,0.09903441]
[1736311735337,0.018,96398.0,96397.0,0.30750941]
[1736311736444,0.009,96398.0,96397.0,0.30650941]
[1736311736646,0.018,96398.0,96397.0,0.40654382]
[1736311736849,0.009,96398.0,96397.0,0.40654382]
[1736311737304,0.08009259,96423.0,96413.0,0.207439]
[1736311737488,0.08009259,96424.0,96414.0,0.09903441]
[1736311737675,0.01922432,96422.0,96414.0,0.09903441]
[1736311737858,0.01922432,96422.0,96415.0,0.207436]
[1736311738233,0.01922432,96421.0,96416.0,0.09903441]
[1736311738415,0.01922432,96421.0,96417.0,0.207432]
[1736311738614,0.01922432,96421.0,96418.0,0.09903441]
[1736311738848,0.009,96424.0,96420.0,0.09903441]
[1736311739047,0.009,96424.0,96421.0,0.30645741]
[1736311739461,0.009,96424.0,96423.0,0.30645341]
[1736311739889,0.08009259,96450.0,96423.0,0.30645341]
[1736311740109,0.28745059,96452.0,96436.0,0.20739]
[1736311740320,0.08009259,96446.0,96437.0,0.09903441]
[1736311740508,0.207369,96447.0,96437.0,0.09903441]
[1736311740714,0.01929227,96438.0,96437.0,0.09903441]
[1736311742094,4.575e-05,96454.0,96453.0,0.207354]
[1736311742305,0.00019852,96454.0,96453.0,0.30638841]
[1736311742908,0.0001706,96489.0,96459.0,0.207341]
[1736311743154,0.0001706,96489.0,96459.0,0.3584068]
[1736311743377,0.0001706,96489.0,96459.0,0.43571768]
[1736311743963,0.0001706,96489.0,96459.0,0.44630237]
[1736311744156,0.0091708,96460.0,96459.0,0.44730237]
[1736311744360,0.0001706,96489.0,96459.0,0.44730237]
[1736311744361,0.0001706,96489.0,96466.0,0.01990741]
[1736311744592,0.0001706,96489.0,96466.0,0.20513866]
[1736311744801,0.0001706,96489.0,96466.0,0.18726264]
[1736311745094,0.0001706,96489.0,96466.0,0.46283144]
[1736311745501,0.0091708,96467.0,96466.0,0.46283144]
[1736311745883,0.0091708,96467.0,96466.0,0.18726264]
[1736311746089,0.0091708,96467.0,96466.0,0.1010658]
[1736311746246,0.0091708,96467.0,96466.0,0.06894182]
[1736311746649,0.0001708,96467.0,96466.0,0.06894182]
[1736311746852,0.0001708,96467.0,96466.0,0.20692939]
[1736311747114,0.0011708,96467.0,96466.0,0.21392939]
[1736311747305,0.0011708,96467.0,96466.0,0.3129638]
[1736311747306,0.0001708,96467.0,96466.0,0.3129638]
[1736311747507,0.0091708,96467.0,96466.0,0.17497623]
[1736311747708,0.0091708,96467.0,96466.0,0.06894182]
[1736311747881,0.0001708,96467.0,96466.0,0.06894182]
[1736311748080,0.0091708,96467.0,96466.0,0.06894182]
[1736311748513,0.0001708,96467.0,96466.0,0.06894182]
[1736311748890,0.0091708,96467.0,96466.0,0.06994182]
[1736311749103,0.0091708,96467.0,96466.0,0.13220166]
[1736311750073,0.0001708,96467.0,96466.0,0.13120166]
[1736311750247,0.0001708,96467.0,96466.0,0.13220166]
[1736311750448,0.00904598,96467.0,96466.0,0.13220166]